Cogmind - Beta 15 @@@ ROGUE MODE // 2025.08.21 @ 20:44:44 Player: shockman27 Result: Core destroyed Performance ------------- Evolutions (2) 1000 Regions Visited (5) 1000 Robots Destroyed (58) 290 Value Destroyed (1413) 1413 Prototype IDs (26) 520 Alien Tech Used (0) 0 Bonus (368) 368 TOTAL SCORE: 4591 Bonus ------- Follower Combat Kills 68 Aligned with FarCom 300 Cogmind --------- Core Integrity 0/550 Matter 201/300 Energy 970/1600 System Corruption 0% Temperature Critical (610) Movement Treading (240) Ox1 Location -8/Materials Parts ------- > --- POWER (1) -------- (None) > --- PROPULSION (3) --- Light Treads > --- UTILITY (5) ------ Superbattery > --- WEAPON (2) ------- Firepult > --- INVENTORY (5) ---- Precision Beam Rifle Advanced Beam Cannon Heavy Particle Cannon Peak State ------------ > --- POWER ------------ Ion Engine > --- PROPULSION ------- Light Treads Wheel Compact Wheel > --- UTILITY ---------- Improved Heat Sink Light Humpback Superbattery Machine Analyzer > --- WEAPON ----------- Firepult > --- INVENTORY -------- Light Nuclear Core Light Treads Wheel Heat Sink Heat Sink Weight Redist. System Structural Scanner Improved Sensor Array Terrain Scanner ECM Suite Hacking Suite PSU Rigger Precision Beam Rifle Precision Beam Rifle Precision Beam Rifle Gatling Laser Assault Rifle Minigun Minigun Grenade Launcher Rocket Launcher Mining Laser Mining Claw [Rating: 47] Favorites ----------- Power Ion Engine Engine Ion Engine Propulsion Compact Wheel Treads Light Treads Wheel Compact Wheel Hover Unit Hover Unit Utility Light Humpback Device Improved Heat Sink Storage Light Humpback Processor Signal Interpreter Protection Hardened Light Armor Plating Weapon Assault Rifle Energy Gun Small Laser Energy Cannon Heavy Particle Cannon Ballistic Gun Assault Rifle Special Weapon Mining Laser Slashing Weapon Mining Claw Build | -11 -10 -10 -10 -9 -8 ------- Run | Yrd Mat Min Exi Min Mat Slots Evolved 4 | . . . . . 4 Power . | . . . . . . Propulsion 1 | . . . . . 1 Utility 3 | . . . . . 3 Weapon . | . . . . . . Parts Attached 54 | 8 13 1 2 . 30 Power 4 | 1 2 . . . 1 Engine 4 | 1 2 . . . 1 Core . | . . . . . . Reactor . | . . . . . . Propulsion 15 | 2 4 . . . 9 Treads 6 | 2 1 . . . 3 Leg . | . . . . . . Wheel 7 | . 2 . . . 5 Hover 2 | . 1 . . . 1 Flight . | . . . . . . Utility 15 | 2 3 1 1 . 8 Device 6 | 1 1 . . . 4 Storage 5 | 1 2 . . . 2 Processor 2 | . . 1 . . 1 Hackware . | . . . . . . Protection 2 | . . . 1 . 1 Artifact . | . . . . . . Weapon 20 | 3 4 . 1 . 12 Energy Gun 8 | . 1 . . . 7 Energy Cannon 3 | . . . 1 . 2 Ballistic Gun 7 | 3 2 . . . 2 Ballistic Cannon . | . . . . . . Launcher . | . . . . . . Special Weapon 1 | . 1 . . . . Impact Weapon . | . . . . . . Slashing Weapon 1 | . . . . . 1 Piercing Weapon . | . . . . . . Special Melee Weapon . | . . . . . . Unidentified Prototypes 3 | . . . . . 3 Parts Lost 16 | . 8 . . . 8 Power 2 | . 1 . . . 1 Propulsion 6 | . 3 . . . 3 Utility 4 | . 1 . . . 3 Weapon 4 | . 3 . . . 1 Highest Loss Streak 6 | . 6 . . . 5 To Critical Strikes . | . . . . . . Average Backups 13 | 3 5 11 16 17 21 Power . | . . . . . . Propulsion 1 | 1 1 2 2 2 1 Utility 5 | . 2 8 10 11 7 Weapon 5 | . 1 1 4 4 11 Tool/Special . | . . . . . . Unused Backups 24 | . 1 . . . 23 Power 2 | . 1 . . . 1 Propulsion 1 | . . . . . 1 Utility 11 | . . . . . 11 Weapon 10 | . . . . . 10 Tool/Special . | . . . . . . Average Slot Usage (%) 86 | . 89 100 71 85 84 Engine 11 | . 13 14 14 14 9 Treads 7 | . 14 . . . 4 Wheel 18 | . 9 28 28 28 19 Device 8 | . 12 3 . . 9 Storage 13 | . 10 14 14 14 17 Processor 4 | . . 10 14 . 3 Protection 1 | . . . . 14 3 Energy Gun 5 | . 4 . . . 10 Energy Cannon 1 | . . . . 14 4 Ballistic Gun 9 | . 21 14 . . 1 Special Weapon 1 | . . 14 . . . Peak Build Rating 47 | 7 9 9 28 28 47 Average Rating 17 | 5 6 8 7 28 33 On Entrance 13 | . 7 9 8 28 28 Naked Turns 18 | . 18 . . . . Heaviest Build 108 | 15 88 88 108 108 73 Greatest Support 42 | 40 40 38 32 32 42 Greatest Overweight (x) 6 | . 2 2 3 3 6 Average Overweight (x) 1 | . . 2 2 3 1 Largest Inventory Capacity 25 | 8 25 25 25 25 25 Average Capacity 19 | 7 11 25 25 25 23 Most Carried 25 | 5 10 13 21 19 25 Average Carried 14 | 3 5 11 17 18 22 Final Capacity 25 | 8 25 25 25 25 5 Final Carried 19 | 5 10 13 18 19 3 Class Distribution -------------------- 100% | Mutant Dominant Class ---------------- Mutant | -10/Materials Mutant | -10/Mines Mutant | -10/Exiles Mutant | -9/Mines Mutant | -8/Materials Resources | -11 -10 -10 -10 -9 -8 ----------- Run | Yrd Mat Min Exi Min Mat Matter Collected 1108 | 220 414 10 . . 464 Remotely . | . . . . . . Salvage Created 2266 | 19 382 . . . 1865 Parts 100 | 5 31 . . . 64 Haulers Intercepted 5 | . 1 . . . 4 Recyclers Shooed 4 | 1 1 . . . 2 Parts Field Recycled . | . . . . . . Retrieved Matter . | . . . . . . Parts Self-Destructed . | . . . . . . Prevented . | . . . . . . Kills | -11 -10 -10 -10 -9 -8 ------- Run | Yrd Mat Min Exi Min Mat Combat Hostiles Destroyed 33 | . 12 . . . 21 Melee 1 | . 1 . . . . Guns 18 | . 11 . . . 7 Cannons 4 | . . . . . 4 AOE 7 | . . . . . 7 Classes Destroyed 12 | 1 6 . . . 5 Worker 5 | . 2 . . . 3 Builder 4 | . 1 . . . 3 Tunneler 1 | 1 . . . . . Hauler 5 | . 1 . . . 4 Recycler 5 | . . . . . 5 Mechanic 1 | . . . . . 1 Operator 1 | . . . . . 1 Watcher 3 | . 1 . . . 2 Swarmer 7 | . 7 . . . . Grunt 22 | . 5 . . . 17 Brawler 1 | . . . . . 1 Sentry 3 | . . . . . 3 Best Kill Streak 17 | 1 7 . . . 17 Combat Bots Only 8 | . 7 . . . 8 Max Kills in Single Turn 5 | 1 1 . . . 5 Gunslinging . | . . . . . . Exploded 3 | . . . . . 3 Melee 1 | . 1 . . . . Uniques/NPCs Destroyed . | . . . . . . Combat | -11 -10 -10 -10 -9 -8 -------- Run | Yrd Mat Min Exi Min Mat Hostile Shots Fired 255 | . 152 . . . 103 Missed 49 | . 31 . . . 18 Hits 206 | . 121 . . . 85 Projectile 206 | . 121 . . . 85 Critical Strikes 4 | . 1 . . . 3 Damage Taken 2861 | . 1124 . . . 1737 Core 830 | . 239 . . . 591 Absorbed by Shields . | . . . . . . Redirected to Shielding 6 | . . . . . 6 Regen/Repaired (Parts) 53 | . . . . . 53 Core Remaining (%) 52 | 100 . . . 4 . Volleys Fired 134 | 2 56 . . . 76 Largest 2 | 2 2 . . . 2 Hottest 250 | 40 100 . . . 250 Shots Fired 229 | 4 91 . . . 134 Gun 186 | 4 89 . . . 93 Cannon 41 | . . . . . 41 Launcher . | . . . . . . Special 2 | . 2 . . . . Kinetic 94 | 4 87 . . . 3 Thermal 135 | . 4 . . . 131 Explosive . | . . . . . . Electromagnetic . | . . . . . . Robot Hit Streak 10 | 4 8 . . . 10 Robot Miss Streak 13 | . 3 . . . 13 Penetration Max . | . . . . . . Secondary Targets 2 | . 2 . . . . Max Gunslinging Chain 1 | . 1 . . . . Shots Hit Robots 130 | 4 52 . . . 74 Core Hits 97 | 1 22 . . . 74 Critical Kills 2 | . 2 . . . . Critical Parts Destroyed . | . . . . . . Critical Strikes 4 | . 2 . . . 2 Burn 2 | . . . . . 2 Destroy 2 | . 2 . . . . Melee Attacks 4 | . . . . . 4 Impact . | . . . . . . Slashing 4 | . . . . . 4 Piercing . | . . . . . . Sneak Attacks 1 | . . . . . 1 Combat Hostiles . | . . . . . . Follow-up Attacks . | . . . . . . Damage Inflicted 3505 | 49 670 . . . 2786 Guns 1822 | 49 638 . . . 1135 Cannons 653 | . . . . . 653 Explosions 998 | . . . . . 998 Melee . | . . . . . . Ramming 8 | . 8 . . . . Kinetic 690 | 49 626 . . . 15 Thermal 2719 | . 36 . . . 2683 Explosive 88 | . . . . . 88 Electromagnetic . | . . . . . . Impact . | . . . . . . Slashing . | . . . . . . Piercing . | . . . . . . Highest Corruption 5 | . 5 5 5 5 . Average Corruption 4 | . 4 5 5 5 . Corruption Purged . | . . . . . . Corruption Blocked . | . . . . . . Effects 31 | . 11 8 11 1 . Message Errors 5 | . 2 2 1 . . Matter Fused 9 | . 2 2 4 1 . Heat Flow Errors 4 | . 3 1 . . . Energy Discharges 6 | . 1 3 2 . . Data Loss (minor) 4 | . 1 . 3 . . Data Loss (major) 1 | . . . 1 . . Misfires 2 | . 2 . . . . Overload Shots . | . . . . . . Overflow Damage 27 | . . . . . 27 Projectiles . | . . . . . . Explosions 27 | . . . . . 27 Melee . | . . . . . . Knockbacks . | . . . . . . Impact . | . . . . . . Kinetic . | . . . . . . Secondary . | . . . . . . Self-Inflicted Damage 159 | . . . . . 159 Shots 9 | . . . . . 9 Rammed 5 | . 5 . . . . Targets Rammed 6 | . 6 . . . . Kicked . | . . . . . . Crushed 1 | . 1 . . . . Highest Temperature 649 | . 196 116 . . 649 Average Temperature 168 | . 60 66 . . 187 Received Heat Transfer 942 | . 204 . . . 738 Effects 28 | . . . . . 28 Shutdowns 6 | . . . . . 6 Energy Bleed 5 | . . . . . 5 Interference 4 | . . . . . 4 Matter Decay 3 | . . . . . 3 Short Circuit 1 | . . . . . 1 Damage (minor) 3 | . . . . . 3 Damage (major) 3 | . . . . . 3 Damage (core) 3 | . . . . . 3 Siege Activations . | . . . . . . Martial Activations . | . . . . . . Shielding Activations . | . . . . . . Robots Disrupted . | . . . . . . Combat Hostiles . | . . . . . . Robots Corrupted . | . . . . . . Combat Hostiles . | . . . . . . Parts Fried . | . . . . . . Impact Corruptions . | . . . . . . Robots Melted 4 | . . . . . 4 Combat Hostiles 3 | . . . . . 3 Parts Melted 32 | . . . . . 32 Heat Transferred 9068 | . 75 . . . 8993 Parts Sabotaged . | . . . . . . Parts Stolen . | . . . . . . Parts Stripped . | . . . . . . Power Chain Reactions . | . . . . . . Alert | -11 -10 -10 -10 -9 -8 ------- Run | Yrd Mat Min Exi Min Mat Maximum Alert Level 1 | . . . . . 1 Low Security (%) 77 | 100 100 100 . 100 48 Level 1 22 | . . . . . 51 Level 2 . | . . . . . . Level 3 . | . . . . . . Level 4 . | . . . . . . Level 5 . | . . . . . . High Security . | . . . . . . Max Security . | . . . . . . Peak Influence 280 | 5 130 1 . . 280 Initial 1 | . . 1 . . . Average 86 | . 33 . . . 168 Influence Increases 1234 | 5 374 . . . 855 Destroy 0b10 Robot/C 700 | . 240 . . . 460 Destroy 0b10 Robot/NC 125 | 5 25 . . . 95 Destroy Leader 156 | . 44 . . . 112 Allied During Kill 9 | . . . . . 9 Successful Hack 34 | . 17 . . . 17 Disable Machine 45 | . 15 . . . 30 Destroy Structure 75 | . 3 . . . 72 Lose Combat Pursuer 90 | . 30 . . . 60 Influence Decreases 950 | 5 370 4 . . 571 Entered New Map 3 | . . 3 . . . Time Decay 747 | 5 290 1 . . 451 Lost Part 160 | . 80 . . . 80 Lost Ally 40 | . . . . . 40 Squads Dispatched 5 | . 2 . . . 3 Investigation 3 | . 2 . . . 1 Extermination . | . . . . . . Reinforcement 2 | . . . . . 2 Assault . | . . . . . . Garrison . | . . . . . . Intercept . | . . . . . . Searches Triggered . | . . . . . . Construction Impeded 1 | . . . . . 1 Haulers Reinforced . | . . . . . . Active Scanning Responses . | . . . . . . Cargo Convoy Interrupts . | . . . . . . Stealth | -11 -10 -10 -10 -9 -8 --------- Run | Yrd Mat Min Exi Min Mat Distress Signals 5 | . 1 . . . 4 Communications Jammed . | . . . . . . Distress Signals . | . . . . . . Times Spotted 59 | . 26 . . . 33 Peak Tracking Total 9 | . 9 . . . 9 Tactical Retreats 3 | . 1 . . . 2 Traps | -11 -10 -10 -10 -9 -8 ------- Run | Yrd Mat Min Exi Min Mat Traps Triggered 6 | . 5 . . . 1 Indirectly . | . . . . . . Trap Hack Attempts . | . . . . . . Triggered . | . . . . . . Disarmed . | . . . . . . Reprogrammed . | . . . . . . Reused . | . . . . . . Traps Extracted . | . . . . . . Installed . | . . . . . . Triggered . | . . . . . . Machines | -11 -10 -10 -10 -9 -8 ---------- Run | Yrd Mat Min Exi Min Mat Machines Disabled 3 | . 1 . . . 2 Max in Single Turn 1 | . 1 . . . 1 Machines Repaired . | . . . . . . Machines Dismantled . | . . . . . . Machines Sabotaged . | . . . . . . Overloaded Fab Kills . | . . . . . . Hacking | -11 -10 -10 -10 -9 -8 --------- Run | Yrd Mat Min Exi Min Mat Machines Accessed 11 | . 4 . 2 . 5 Terminals 8 | . 4 . . . 4 Fabricators . | . . . . . . Repair Stations 1 | . . . . . 1 Recycling Units . | . . . . . . Scanalyzers . | . . . . . . Garrison Access . | . . . . . . Total Hacks 36 | . 18 . 2 . 16 Successful 22 | . 11 . 2 . 9 Failed 13 | . 6 . . . 7 Catastrophic 1 | . . . . . 1 Database Lockouts 1 | . 1 . . . . Manual 28 | . 15 . 1 . 12 Terminals 32 | . 18 . . . 14 Fabricators . | . . . . . . Repair Stations 2 | . . . . . 2 Recycling Units . | . . . . . . Scanalyzers . | . . . . . . Garrison Access . | . . . . . . Terminal Hacks 13 | . 7 . 2 . 4 Record 2 | . . . 1 . 1 Robot Analysis 4 | . 2 . . . 2 Branch Access Points 1 | . 1 . . . . Alert Level 3 | . 2 . . . 1 Locate Traps 1 | . 1 . . . . Hauler Manifests 1 | . 1 . . . . Proto ID Catalog 1 | . . . 1 . . Fabricator Hacks . | . . . . . . Repair Station Hacks 2 | . . . . . 2 Scan Component 1 | . . . . . 1 Repair 1 | . . . . . 1 Recycling Unit Hacks . | . . . . . . Scanalyzer . | . . . . . . Garrison Access Hacks . | . . . . . . Unauthorized Hacks 7 | . 4 . . . 3 Terminals 7 | . 4 . . . 3 Botnet 5 | . 3 . . . 2 Operators 2 | . 1 . . . 1 Fabricators . | . . . . . . Repair Stations . | . . . . . . Recycling Units . | . . . . . . Scanalyzers . | . . . . . . Garrison Access . | . . . . . . Data Cores Recovered . | . . . . . . Used . | . . . . . . Hacking Detections 8 | . 4 . . . 4 Full Trace Events . | . . . . . . Feedback Events . | . . . . . . Feedback Blocked . | . . . . . . Robot Schematics Acquired . | . . . . . . Robots Built . | . . . . . . Authchips . | . . . . . . Time . | . . . . . . Total Robot Build Rating . | . . . . . . Part Schematics Acquired . | . . . . . . Parts Built . | . . . . . . Authchips . | . . . . . . Time . | . . . . . . Total Part Build Rating . | . . . . . . Parts Repaired 1 | . . . . . 1 Time 26 | . . . . . 26 Parts Recycled . | . . . . . . Recycled Matter . | . . . . . . Retrieved Matter . | . . . . . . Retrieved Components . | . . . . . . Parts Scanalyzed . | . . . . . . Part Schematics Acquired . | . . . . . . Parts Damaged . | . . . . . . Bothacking | -11 -10 -10 -10 -9 -8 ------------ Run | Yrd Mat Min Exi Min Mat Used RIF Installer . | . . . . . . Robots Hacked . | . . . . . . Non-combat . | . . . . . . Combat . | . . . . . . Robot Hacks Applied . | . . . . . . Relay Couplers Released . | . . . . . . Fabnet Peak Effective % . | . . . . . . Robots Rewired . | . . . . . . Allies Hacked . | . . . . . . Hacks Repelled . | . . . . . . Allies | -11 -10 -10 -10 -9 -8 -------- Run | Yrd Mat Min Exi Min Mat Total Allies 3 | . . 3 . . . Largest Group 3 | . . 3 3 3 3 Highest-Rated Group 40 | . . 40 40 40 40 Highest-Rated Ally 16 | . . 16 16 16 16 Total Orders . | . . . . . . Ally Attacks 16 | . . . . . 16 Total Damage 127 | . . . . . 127 Kills 2 | . . . . . 2 Allies Corrupted . | . . . . . . Allies Melted . | . . . . . . Intel | -11 -10 -10 -10 -9 -8 ------- Run | Yrd Mat Min Exi Min Mat Active Infowar (turns) 1371 | 31 741 . . . 599 Seismic 772 | 31 741 . . . . Machine Analysis 599 | . . . . . 599 Robot Analysis Total 3 | . 2 . . . 1 Derelict Logs Recovered 1 | . . . . 1 . Drone Launches . | . . . . . . Drone Recoveries . | . . . . . . Exploration | -11 -10 -10 -10 -9 -8 ------------- Run | Yrd Mat Min Exi Min Mat Turns Passed 4236 | 206 1430 402 489 67 1642 Spaces Moved 2685 | 93 879 267 371 46 1029 Core 72 | 32 38 . . . 2 Treads 367 | 61 306 . . . . Legs . | . . . . . . Wheels 2113 | . 402 267 371 46 1027 Hover 133 | . 133 . . . . Flight . | . . . . . . Fastest Speed 50 | 50 50 130 130 145 93 Average Speed 124 | 122 127 130 130 145 117 Slowest Speed 350 | 160 160 130 145 145 350 Overloaded Moves . | . . . . . . Propulsion Burnouts . | . . . . . . Robots Hopped . | . . . . . . Potential Cave-ins . | . . . . . . Cave-ins Triggered . | . . . . . . Exploration Rate (%) 47 | 5 100 45 61 12 62 Regions Visited 5 Branch Regions 3 Pre-discovered Areas 2 | . . . 1 1 . Known Exits Taken 3 | . 1 1 1 . . Unknown Exits Taken 2 | 1 . . . 1 . Scrap Searched 1 | . . 1 . . . Spaces Dug 6 | . . . . . 6 Terrain Destroyed 78 | . . . . . 78 Melee 2 | . . . . . 2 Projectile 12 | . . . . . 12 AOE 64 | . . . . . 64 Terrain Rammed . | . . . . . . Walls Destroyed . | . . . . . . Machines Disabled . | . . . . . . Actions | -11 -10 -10 -10 -9 -8 --------- Run | Yrd Mat Min Exi Min Mat Total 3344 | 178 1090 321 379 46 1330 Wait 347 | 72 123 51 . . 101 Move 2680 | 92 878 266 370 45 1029 Hop . | . . . . . . Pick Up 61 | 4 9 3 4 1 40 Fast Attach 25 | 7 6 . . . 12 Attach 14 | . 3 . 2 . 9 Detach 11 | . . . 3 . 8 Swap 29 | 1 6 1 . . 21 Drop 33 | . 3 . . . 30 Fire 134 | 2 56 . . . 76 Melee 4 | . . . . . 4 Ram 1 | . 1 . . . . Kick . | . . . . . . Crush 5 | . 5 . . . . Escape Stasis . | . . . . . . Rewire . | . . . . . . Trap . | . . . . . . Miscellaneous . | . . . . . . Route ------- -11/Scrapyard -10/Materials (discovered 5 exits: [*Mat x3] / *Min / *Sub) -10/Mines (discovered 2 exits: *Exi / *Sub) -10/Exiles -9/Mines -8/Materials (discovered 1 exit: [*Fac]) History --------- Turn | Location | Event 26 | -11/Scrapyard | Discovered new exit (range 15) 207 | -11/Scrapyard | Entered Materials 303 | -10/Materials | Build established: Mutant 512 | -10/Materials | Discovered new exit (range 12) 707 | -10/Materials | Derelicts attacked the area 711 | -10/Materials | Destroyed 7 combat bots 772 | -10/Materials | Discovered new exit (range 7) 831 | -10/Materials | Discovered new exit (range 9) 857 | -10/Materials | Central database locked down 857 | -10/Materials | Identified exit to Mines 948 | -10/Materials | Core integrity fell below 50% 970 | -10/Materials | Core integrity fell below 20% 979 | -10/Materials | Lost 6 parts (1p3n1u1w) 1287 | -10/Materials | Discovered new exit (range 15) 1465 | -10/Materials | Discovered new exit (range 9) 1637 | -10/Materials | Entered Mines 1694 | -10/Mines | Discovered new exit (range 5) 1732 | -10/Mines | Identified exit to Subcaves 1790 | -10/Mines | Assisted by bots powering up and referring to "LRC-V3" 2015 | -10/Mines | Deemed a non-threat by the Exiles lab entrance 2016 | -10/Mines | Discovered new exit (range 5) 2020 | -10/Mines | Identified exit to Exiles 2039 | -10/Mines | Entered Exiles 2039 | -10/Exiles | Accompanied by 3 allies 2072 | -10/Exiles | Met 8R-AWN 2091 | -10/Exiles | Met EX-HEX 2130 | -10/Exiles | Met EX-BIN 2146 | -10/Exiles | Aligned with FarCom system 2147 | -10/Exiles | Given EX-Vault access code 2178 | -10/Exiles | Opened EX-Vault 2189 | -10/Exiles | Found Superbattery 2221 | -10/Exiles | Warned to stay clear of 0b10 Research branches 2259 | -10/Exiles | Met EX-DEC 2264 | -10/Exiles | Learned location of Zion (-7) 2340 | -10/Exiles | Found Firepult 2347 | -10/Exiles | Found PSU Rigger 2507 | -10/Exiles | Discovered new exit (range 10) 2518 | -10/Exiles | Identified exit to Mines 2528 | -10/Exiles | Stole three prototypes: Superbattery, PSU Rigger, Firepult 2528 | -10/Exiles | Entered Mines 2528 | -9/Mines | Accompanied by 3 allies 2552 | -9/Mines | Met a Derelict bent on vengeance 2560 | -9/Mines | Discovered new exit (range 6) 2566 | -9/Mines | Received a Rocket Launcher from a helpful Derelict 2595 | -9/Mines | Entered Materials 2595 | -8/Materials | Accompanied by 3 allies 2595 | -8/Materials | Evolved 4 slots: Propulsion x1, Utility x3 2940 | -8/Materials | Lost 3 allies 2944 | -8/Materials | Destroyed 8 combat bots 3156 | -8/Materials | Repaired Lgt. Humpback 3605 | -8/Materials | Discovered new exit (range 15) 4201 | -8/Materials | Core integrity fell below 50% 4213 | -8/Materials | Core integrity fell below 20% 4232 | -8/Materials | Lost 5 parts (2n2u1w) 4238 | -8/Materials | Core destroyed Last Messages --------------- 04213_ Overheating: Core damaged (-110). 04214_ Overheating: Broken Wheel damaged (-2). 04226_ Overheating: Energy bleed (-197). 04226_ Dropped Broken Wheel. 04226_ Broken Wheel crushed and broken. 04230_ Acquired Lgt. Treads. 04233_ Hrd. Light Armor Plating destroyed. 04233_ Dropped Hvy. Particle Gun. 04235_ Melted Aluminum Leg. 04235_ Particle Gun melted. 04235_ Lgt. Nuclear Core melted. 04235_ Imp. Heat Sink melted. 04235_ G-47 Trooper destroyed. 04237_ Melted Ion Engine. 04237_ Melted Lgt. Treads. 04237_ A-02 Transporter critical meltdown. 04237_ Weight Redist. System melted. 04237_ Imp. Ion Engine destroyed. 04237_ Destroyed Imp. Ion Engine. 04238_ Overheating: Core damaged (-77). Map ----- +----------------------------------------------------+ | # ## ######## #### + ] #?????????????? | | # # # #?????????????? | | # # # #?????????????? | | # + + #???????"T"???? | | # # " """"" ##### #?????????????? | | # # """"""""" #???###+###???????????? | | # # ^ """ """ #?????# +???????????? | | # # #?????# ###?"""???????? | | # # ####### #???"""???????? | | # # # # #???"""???????? | | ######## # # #?????????????? | | ???????# " ^ # # #??????######## | | ???????# T # # #??????# % | | ???????# " = + # #??????# """ | | ???????# ####### ######## "T" | | ???????# # + | | ???????# ####### # #########+## | | ???????# # """ # # #???????# | | ???????? ??# """ # #???????# | | ?????????????# """ + +???????# | | ?????????????# #### ##### ??????# | | ?????????????# [ ########## ##??? ?????# | | ?????????????# ##|[][[=#= ######+##### | | ?????????????# "#![=!%!+ T | | ?????????????######;#[|]!![# ###### ##+##### | | ??????????# ##; [@! [[]####???????# # | | ???????? T [=%%=[%!*%#??????????#[[= / | | ???????# ##; [[[[[[%!#??????????#[! = # | | ???????# ??????####= ##+####??????????#[!! # | | ??????????????????###??%##????????????# # | | ???????????????????????/#???????????#?# * # | | ???????????????????????##???????????# ######## | | ????????????????????????????????????# ???????# | | ????????????????????????????????????# ???????# | | ????????????????????????????????????# ######## | | ????????????????????????????????????# | | ????????????????????????????????????# ##### | | ????????????????????????????????????# #???# | | ????????????????????????????????????# #???# | | ????????????????????????????????????# #???# | | ????????????????????????????????????# #???# | | ????????????????????????????????????# #???# | | ????????????????????????????????????#+##+##### | | ???????????????????????????????????????# | | ???????????????????????????????????????# | | ???????????????????????????????????????# | | ???????????????????????????????????????# | | ???????????????????????????????????????# " | | ???????????????????????????????????????#[[[ " | | ???????????????????????????????????????#[[[ " | +----------------------------------------------------+ Best States ------------- Heat Dissipation 55 Energy Generation 12 Energy Capacity 1765 Matter Stores 300 Matter Capacity 300 Sight Range 16 Terrain Scan Density 10 Additional Mass Support 6 Armor Coverage 150 Core Shielding 20 Evasion (%) 53 Recoil Reduction 2 Item Schematics ----------------- None Robot Schematics ------------------ None Fabricated ------------ Nothing Repaired ---------- Lgt. Humpback | 64% | -8/Materials Alien Tech Used ----------------- None Achievements -------------- None Challenges ------------ None Game ------ Seed LatentAntimissileAirjet Manual? 0 Play Time 00:43:04 Cumulative 149.3 hours Start 2025.08.20 @ 09:57:01 End 2025.08.21 @ 20:44:44 Sessions 5 Manual Loads 0 Difficulty Rogue Special Mode None Game No. 83 Rogue 79 Adventurer 4 Explorer 0 Win Type - Total 3 Types 2/0/0/1/0/0/0/0/0/0 Lore% 65 Gallery% 57 Achievement% 48 Wizard Run 0 Options --------- Layout 0 ASCII 0 Keyboard 1 Movement Vi Keybinds 0 Fullscreen 1 Font 24/Smallcaps Map View 76x50 Zoom Use 1% Tactical HUD 1 Map Filters NONE Filters NONE Steam 1 RUN: 50e1bfc5-b335-40c4-8c79-831f894bd926